Cogmind - Beta 15 @@@ ROGUE MODE // 2025.06.15 @ 14:52:32 Player: RNGesus Result: Self-destructed Performance ------------- Evolutions (2) 1000 Regions Visited (3) 600 Robots Destroyed (22) 110 Value Destroyed (917) 917 Prototype IDs (1) 20 Alien Tech Used (0) 0 Bonus (-21) -21 TOTAL SCORE: 2626 Bonus ------- Follower Combat Kills 173 Friendly Fire -194 Cogmind --------- Core Integrity 205/550 Matter 300/300 Energy 100/100 System Corruption 0% Temperature Cool (0) Movement Core (50) Location -8/Materials Parts ------- > --- POWER (1) -------- (None) > --- PROPULSION (4) --- (None) > --- UTILITY (4) ------ (None) > --- WEAPON (2) ------- (None) > --- INVENTORY (5) ---- Light Nuclear Core Structural Scanner Hacking Suite Makeshift System Shield V3-11A's Pendant Peak State ------------ > --- POWER ------------ Subdweller Power Source > --- PROPULSION ------- Light Treads Light Treads Light Treads Light Treads > --- UTILITY ---------- High-capacity Storage Unit Seismic Detector Medium Armor Plating Hardened Light Armor Plating > --- WEAPON ----------- Improved Light Cannon Improved Light Cannon > --- INVENTORY -------- Light Treads Light Treads Medium Storage Unit Hacking Suite Hacking Suite Makeshift System Shield V3-11A's Pendant Small Laser Light Assault Rifle Subdweller Machine Gun Improved Light Cannon Shrapnel Trap Piercing Trap [Rating: 18] Favorites ----------- Power Ion Engine Engine Ion Engine Propulsion Light Treads Treads Light Treads Leg Aluminum Leg Utility High-capacity Storage Unit Device V3-11A's Pendant Storage High-capacity Storage Unit Hackware Hacking Suite Protection Hardened Light Armor Plating Weapon Improved Light Cannon Energy Gun Small Laser Ballistic Gun Light Assault Rifle Ballistic Cannon Improved Light Cannon Launcher Grenade Launcher Build | -11 -10 -10 -8 ------- Run | Yrd Mat Sub Mat Slots Evolved 4 | . . . 4 Power . | . . . . Propulsion 2 | . . . 2 Utility 2 | . . . 2 Weapon . | . . . . Parts Attached 31 | 7 6 9 9 Power 3 | 1 1 . 1 Engine 3 | 1 1 . 1 Core . | . . . . Reactor . | . . . . Propulsion 10 | 3 2 2 3 Treads 9 | 2 2 2 3 Leg 1 | 1 . . . Wheel . | . . . . Hover . | . . . . Flight . | . . . . Utility 9 | 1 2 2 4 Device 3 | . . 2 1 Storage 3 | 1 2 . . Processor . | . . . . Hackware 1 | . . . 1 Protection 2 | . . . 2 Artifact . | . . . . Weapon 9 | 2 1 5 1 Energy Gun 1 | 1 . . . Energy Cannon . | . . . . Ballistic Gun 3 | 1 1 . 1 Ballistic Cannon 4 | . . 4 . Launcher 1 | . . 1 . Special Weapon . | . . . . Impact Weapon . | . . . . Slashing Weapon . | . . . . Piercing Weapon . | . . . . Special Melee Weapon . | . . . . Unidentified Prototypes 1 | . . 1 . Parts Lost 21 | . 2 5 14 Power 2 | . 1 1 . Propulsion 8 | . . 2 6 Utility 4 | . . . 4 Weapon 7 | . 1 2 4 Highest Loss Streak 14 | . 2 5 14 To Critical Strikes . | . . . . Average Backups 10 | 2 7 12 10 Power . | . . . . Propulsion 3 | 1 3 4 1 Utility 3 | . 1 4 4 Weapon 3 | . 2 4 3 Tool/Special . | . . . . Unused Backups 7 | . 2 . 5 Power 1 | . . . 1 Propulsion 2 | . 2 . . Utility 4 | . . . 4 Weapon . | . . . . Tool/Special . | . . . . Average Slot Usage (%) 84 | . 85 84 78 Engine 6 | . 13 1 6 Treads 28 | . 28 28 29 Device 7 | . . 12 8 Storage 13 | . 14 14 7 Protection 1 | . . . 11 Energy Gun 5 | . 14 . . Ballistic Gun 5 | . 14 . . Ballistic Cannon 14 | . . 26 14 Peak Build Rating 18 | 6 8 12 18 Average Rating 9 | 4 6 11 14 On Entrance 6 | . 6 8 12 Naked Turns 13 | . . . 13 Heaviest Build 67 | 12 67 53 66 Greatest Support 80 | 40 40 40 80 Greatest Overweight (x) 1 | 1 1 1 1 Average Overweight (x) . | . . 1 . Largest Inventory Capacity 20 | 8 20 20 20 Average Capacity 17 | 6 15 20 17 Most Carried 16 | 4 15 16 16 Average Carried 11 | 2 7 13 11 Final Capacity 20 | 8 20 20 5 Final Carried 15 | 4 14 15 5 Class Distribution -------------------- 100% | Mutant Dominant Class ---------------- Mutant | -10/Materials Mutant | -10/Subcaves Mutant | -8/Materials Resources | -11 -10 -10 -8 ----------- Run | Yrd Mat Sub Mat Matter Collected 855 | 213 160 177 305 Remotely . | . . . . Salvage Created 769 | . 376 187 206 Parts 35 | . 16 10 9 Haulers Intercepted 1 | . 1 . . Recyclers Shooed . | . . . . Parts Field Recycled . | . . . . Retrieved Matter . | . . . . Parts Self-Destructed 5 | . . 5 . Prevented . | . . . . Kills | -11 -10 -10 -8 ------- Run | Yrd Mat Sub Mat Combat Hostiles Destroyed 19 | . 7 5 7 Guns 9 | . 7 . 2 Cannons 5 | . . . 5 AOE 5 | . . 5 . Classes Destroyed 5 | . 3 2 . Hauler 1 | . 1 . . Operator 1 | . 1 . . Grunt 14 | . 7 . 7 Subdweller 5 | . . 5 . Guerrilla 1 | . . 1 . Best Kill Streak 5 | . 2 5 4 Combat Bots Only 5 | . 2 5 4 Max Kills in Single Turn 3 | . 1 3 1 Gunslinging . | . . . . Exploded 2 | . . 2 . Melee . | . . . . Uniques/NPCs Destroyed . | . . . . Combat | -11 -10 -10 -8 -------- Run | Yrd Mat Sub Mat Hostile Shots Fired 225 | . 50 36 139 Missed 47 | . 17 7 23 Hits 178 | . 33 29 116 Projectile 178 | . 33 29 116 Critical Strikes 8 | . . 2 6 Damage Taken 3101 | . 396 770 1935 Core 542 | . 41 156 345 Absorbed by Shields . | . . . . Core Remaining (%) 60 | 100 . 21 . Volleys Fired 99 | . 52 12 35 Largest 2 | . 2 2 2 Hottest 66 | . 60 66 66 Shots Fired 189 | . 103 21 65 Gun 112 | . 103 . 9 Cannon 74 | . . 18 56 Launcher 3 | . . 3 . Special . | . . . . Kinetic 134 | . 51 18 65 Thermal 52 | . 52 . . Explosive 3 | . . 3 . Electromagnetic . | . . . . Robot Hit Streak 24 | . 24 3 6 Robot Miss Streak 4 | . 4 1 3 Penetration Max . | . . . . Secondary Targets 2 | . 1 . 1 Max Gunslinging Chain 1 | . 1 . 1 Shots Hit Robots 119 | . 77 4 38 Core Hits 56 | . 23 14 19 Critical Kills 2 | . 1 . 1 Critical Parts Destroyed 2 | . 2 . . Critical Strikes 4 | . 3 . 1 Destroy 4 | . 3 . 1 Melee Attacks . | . . . . Impact . | . . . . Slashing . | . . . . Piercing . | . . . . Sneak Attacks . | . . . . Combat Hostiles . | . . . . Follow-up Attacks . | . . . . Damage Inflicted 2536 | . 720 883 933 Guns 811 | . 720 . 91 Cannons 847 | . . 23 824 Explosions 860 | . . 860 . Melee . | . . . . Ramming 18 | . . . 18 Kinetic 1220 | . 282 23 915 Thermal 438 | . 438 . . Explosive 860 | . . 860 . Electromagnetic . | . . . . Impact . | . . . . Slashing . | . . . . Piercing . | . . . . Highest Corruption . | . . . . Average Corruption . | . . . . Corruption Purged . | . . . . Corruption Blocked . | . . . . Overload Shots . | . . . . Overflow Damage 37 | . . 37 . Projectiles . | . . . . Explosions 37 | . . 37 . Melee . | . . . . Knockbacks 12 | . . 1 11 Impact . | . . . . Kinetic 11 | . . 1 10 Secondary 1 | . . . 1 Self-Inflicted Damage 104 | . . 96 8 Shots 3 | . . 3 . Rammed 5 | . . . 5 Targets Rammed 5 | . . . 5 Kicked . | . . . . Crushed . | . . . . Highest Temperature 481 | . 150 . 481 Average Temperature 125 | . 41 . 210 Received Heat Transfer 1353 | . 210 90 1053 Effects 12 | . . . 12 Shutdowns 3 | . . . 3 Energy Bleed 2 | . . . 2 Interference 3 | . . . 3 Matter Decay 2 | . . . 2 Damage (major) 2 | . . . 2 Siege Activations . | . . . . Martial Activations . | . . . . Shielding Activations . | . . . . Robots Disrupted . | . . . . Combat Hostiles . | . . . . Robots Corrupted . | . . . . Combat Hostiles . | . . . . Parts Fried . | . . . . Impact Corruptions . | . . . . Robots Melted . | . . . . Combat Hostiles . | . . . . Parts Melted 1 | . 1 . . Heat Transferred 1000 | . 1000 . . Parts Sabotaged . | . . . . Parts Stolen . | . . . . Parts Stripped . | . . . . Power Chain Reactions . | . . . . Alert | -11 -10 -10 -8 ------- Run | Yrd Mat Sub Mat Maximum Alert Level . | . . . . Low Security (%) 100 | 100 100 . 100 Level 1 . | . . . . Level 2 . | . . . . Level 3 . | . . . . Level 4 . | . . . . Level 5 . | . . . . High Security . | . . . . Max Security . | . . . . Peak Influence 197 | . 60 . 197 Initial . | . . . . Average 30 | . 9 . 105 Influence Increases 723 | . 212 . 511 Destroy 0b10 Robot/C 380 | . 140 . 240 Destroy 0b10 Robot/NC 15 | . 10 . 5 Destroy Leader 92 | . 42 . 50 Allied During Kill 29 | . . . 29 Successful Hack 20 | . 20 . . Disable Machine 15 | . . . 15 Anti-Garrison Action 150 | . . . 150 Destroy Structure 7 | . . . 7 Lose Combat Pursuer 15 | . . . 15 Influence Decreases 660 | . 212 . 448 Time Decay 380 | . 212 . 168 Lost Part 140 | . . . 140 Lost Ally 140 | . . . 140 Squads Dispatched 8 | . 4 . 4 Investigation 2 | . 1 . 1 Extermination . | . . . . Reinforcement 4 | . 3 . 1 Assault 2 | . . . 2 Garrison . | . . . . Intercept . | . . . . Searches Triggered . | . . . . Construction Impeded . | . . . . Haulers Reinforced . | . . . . Active Scanning Responses . | . . . . Cargo Convoy Interrupts . | . . . . Stealth | -11 -10 -10 -8 --------- Run | Yrd Mat Sub Mat Distress Signals 4 | . 2 . 2 Communications Jammed . | . . . . Distress Signals . | . . . . Times Spotted 55 | . 18 18 19 Peak Tracking Total 10 | . 3 10 9 Tactical Retreats 1 | . . . 1 Traps | -11 -10 -10 -8 ------- Run | Yrd Mat Sub Mat Traps Triggered . | . . . . Indirectly . | . . . . Trap Hack Attempts . | . . . . Triggered . | . . . . Disarmed . | . . . . Reprogrammed . | . . . . Reused . | . . . . Traps Extracted . | . . . . Installed . | . . . . Triggered . | . . . . Most Traps Carried 2 | . . 2 2 Machines | -11 -10 -10 -8 ---------- Run | Yrd Mat Sub Mat Machines Disabled 2 | . . . 2 Max in Single Turn . | . . . . Garrison Access 1 | . . . 1 Machines Repaired . | . . . . Machines Dismantled . | . . . . Machines Sabotaged . | . . . . Overloaded Fab Kills . | . . . . Hacking | -11 -10 -10 -8 --------- Run | Yrd Mat Sub Mat Machines Accessed 5 | . 4 . 1 Terminals 5 | . 4 . 1 Fabricators . | . . . . Repair Stations . | . . . . Recycling Units . | . . . . Scanalyzers . | . . . . Garrison Access . | . . . . Total Hacks 18 | . 15 . 3 Successful 5 | . 5 . . Failed 12 | . 9 . 3 Catastrophic 5 | . 3 . 2 Database Lockouts 1 | . 1 . . Manual 16 | . 13 . 3 Terminals 18 | . 15 . 3 Fabricators . | . . . . Repair Stations . | . . . . Recycling Units . | . . . . Scanalyzers . | . . . . Garrison Access . | . . . . Terminal Hacks 4 | . 4 . . Part Schematic 1 | . 1 . . Branch Access Points 2 | . 2 . . Hauler Manifests 1 | . 1 . . Fabricator Hacks . | . . . . Repair Station Hacks . | . . . . Recycling Unit Hacks . | . . . . Scanalyzer . | . . . . Garrison Access Hacks . | . . . . Unauthorized Hacks 1 | . 1 . . Terminals 1 | . 1 . . Operators 1 | . 1 . . Fabricators . | . . . . Repair Stations . | . . . . Recycling Units . | . . . . Scanalyzers . | . . . . Garrison Access . | . . . . Data Cores Recovered . | . . . . Used . | . . . . Hacking Detections 4 | . 3 . 1 Full Trace Events 4 | . 3 . 1 Feedback Events . | . . . . Feedback Blocked . | . . . . Robot Schematics Acquired . | . . . . Robots Built . | . . . . Authchips . | . . . . Time . | . . . . Total Robot Build Rating . | . . . . Part Schematics Acquired 1 | . 1 . . Parts Built . | . . . . Authchips . | . . . . Time . | . . . . Total Part Build Rating . | . . . . Parts Repaired . | . . . . Time . | . . . . Parts Recycled . | . . . . Recycled Matter . | . . . . Retrieved Matter . | . . . . Retrieved Components . | . . . . Parts Scanalyzed . | . . . . Part Schematics Acquired . | . . . . Parts Damaged . | . . . . Bothacking | -11 -10 -10 -8 ------------ Run | Yrd Mat Sub Mat Used RIF Installer . | . . . . Robots Hacked . | . . . . Non-combat . | . . . . Combat . | . . . . Robot Hacks Applied . | . . . . Relay Couplers Released 3 | . . . 3 Machine Destruction 3 | . . . 3 Fabnet Peak Effective % . | . . . . Robots Rewired . | . . . . Allies Hacked . | . . . . Hacks Repelled . | . . . . Allies | -11 -10 -10 -8 -------- Run | Yrd Mat Sub Mat Total Allies 7 | . . 7 . Largest Group 7 | . . 7 7 Highest-Rated Group 133 | . . 133 133 Highest-Rated Ally 19 | . . 19 19 Total Orders . | . . . . Ally Attacks 80 | . . 21 59 Total Damage 1278 | . . 326 952 Kills 6 | . . . 6 Allies Corrupted . | . . . . Allies Melted . | . . . . Intel | -11 -10 -10 -8 ------- Run | Yrd Mat Sub Mat Active Infowar (turns) 557 | . . 249 308 Optics 249 | . . 249 . Seismic 308 | . . . 308 Robot Analysis Total . | . . . . Derelict Logs Recovered 2 | . . 2 . Drone Launches . | . . . . Drone Recoveries . | . . . . Exploration | -11 -10 -10 -8 ------------- Run | Yrd Mat Sub Mat Turns Passed 3588 | 62 1374 1720 432 Spaces Moved 1549 | 40 571 694 244 Core 111 | 13 . . 98 Treads 1435 | 24 571 694 146 Legs 3 | 3 . . . Wheels . | . . . . Hover . | . . . . Flight . | . . . . Fastest Speed 50 | 50 160 240 50 Average Speed 206 | 123 207 240 121 Slowest Speed 240 | 160 240 240 240 Overloaded Moves . | . . . . Propulsion Burnouts . | . . . . Robots Hopped . | . . . . Potential Cave-ins . | . . . . Cave-ins Triggered . | . . . . Exploration Rate (%) 39 | 3 83 47 24 Regions Visited 3 Branch Regions 1 Pre-discovered Areas 1 | . . 1 . Known Exits Taken 1 | . . 1 . Unknown Exits Taken 2 | 1 1 . . Scrap Searched . | . . . . Spaces Dug . | . . . . Terrain Destroyed 21 | . . 19 2 Melee . | . . . . Projectile 2 | . . . 2 AOE 19 | . . 19 . Terrain Rammed . | . . . . Walls Destroyed . | . . . . Machines Disabled . | . . . . Actions | -11 -10 -10 -8 --------- Run | Yrd Mat Sub Mat Total 1763 | 50 668 727 318 Wait 33 | . 16 4 13 Move 1546 | 39 570 693 244 Hop . | . . . . Pick Up 26 | 3 15 5 3 Fast Attach 13 | 7 2 2 2 Attach 15 | . 2 5 8 Detach 5 | 1 2 2 . Swap 6 | . 2 3 1 Drop 15 | . 7 1 7 Fire 99 | . 52 12 35 Melee . | . . . . Ram 5 | . . . 5 Kick . | . . . . Crush . | . . . . Escape Stasis . | . . . . Rewire . | . . . . Trap . | . . . . Miscellaneous . | . . . . Route ------- -11/Scrapyard -10/Materials (discovered 5 exits: [*Mat x3] / Min / [*Sub]) -10/Subcaves (discovered 2 exits: *Mat x2) -8/Materials History --------- Turn | Location | Event 13 | -11/Scrapyard | Discovered new exit (range 14) 63 | -11/Scrapyard | Entered Materials 70 | -10/Materials | Identified exit to Mines 302 | -10/Materials | Discovered new exit (range 16) 311 | -10/Materials | Build established: Mutant 563 | -10/Materials | Derelicts attacked the area 757 | -10/Materials | Discovered new exit (range 8) 978 | -10/Materials | Central database locked down 1040 | -10/Materials | Discovered new exit (range 15) 1398 | -10/Materials | Discovered new exit (range 15) 1437 | -10/Materials | Entered Subcaves 1438 | -10/Subcaves | Approached by a straggling Scientist 1554 | -10/Subcaves | Ambushed by swarm of Subdwellers 1556 | -10/Subcaves | Ambushed by Subdwellers from Twisted Machinery 1556 | -10/Subcaves | Ambushed by Subdwellers from Twisted Machinery 1556 | -10/Subcaves | Ambushed by Subdwellers from Twisted Machinery 1563 | -10/Subcaves | Core integrity fell below 50% 1595 | -10/Subcaves | Lost 5 parts (1p2n2w) 1848 | -10/Subcaves | Visited triangular shrine 1863 | -10/Subcaves | Found Prototype Device 1863 | -10/Subcaves | Identified V3-11A's Pendant 1868 | -10/Subcaves | Befriended Subdweller 2184 | -10/Subcaves | A swath of the cavern ceiling suddenly collapsed 2275 | -10/Subcaves | Identified exit to Materials 2319 | -10/Subcaves | Shifting Twisted Machinery released Spk. Treads 2568 | -10/Subcaves | Befriended Subdweller 2573 | -10/Subcaves | Befriended Subdweller 2905 | -10/Subcaves | Discovered exit to Materials (range 16) 2924 | -10/Subcaves | Ambushed by Subdwellers from Twisted Machinery 2933 | -10/Subcaves | Befriended Subdweller 2933 | -10/Subcaves | Befriended Subdweller 2958 | -10/Subcaves | Learned location of Storage (-9) 3008 | -10/Subcaves | Befriended Subdweller 3008 | -10/Subcaves | Befriended Subdweller 3157 | -10/Subcaves | Entered Materials 3157 | -8/Materials | Accompanied by 7 allies 3157 | -8/Materials | Evolved 4 slots: Propulsion x2, Utility x2 3366 | -8/Materials | Lost 5 allies 3585 | -8/Materials | Core integrity fell below 50% 3589 | -8/Materials | Self-destructed Last Messages --------------- 03532_ Hacking Suite destroyed. 03533_ Acquired 61 matter. 03533_ Slammed into M-28 Smith. 03534_ Acquired 55 matter. 03535_ Acquired 56 matter. 03539_ Acquired 51 matter. 03549_ Seismic Detector destroyed. 03549_ U-05 Engineer destroyed. 03552_ Critical hit (Burn: +37). 03553_ Slammed into T-07 Excavator. 03553_ T-07 Excavator sends out distress signal. 03557_ Connecting with Terminal... 03557_ ALERT: Suspicious activity at Terminal M004. Dispatching Investigation squad. 03557_ Critical hit (Burn: +37). 03562_ Slammed into Y-45 Defender. 03563_ Lgt. Treads broken. 03563_ Destabilizing: Short circuit. 03576_ Broken Lgt. Treads destroyed. 03584_ Critical hit (Burn: +37). Map ----- +----------------------------------------------------+ | ?????????????????????????????????????????????????? | | ?????????????????????????????????????????????????? | | ?????????????????????????????????????????????????? | | ?????????????????????????????????????????????????? | | ?????????????????????????????????????????????????? | | ?????????????????????????????????????????????????? | | ?????????????????????????????????????????????????? | | ?????????????????????????????????????????????????? | | ?????????????????????????????????????????????????? | | ?????????????????????????????????????????????????? | | ?????????????????????????????????????????????????? | | ?????????????????????????????????????????????????? | | ?????????????????????????????????????????????????? | | ?????????????????????????????????????????????????? | | ?????????????????????????????????????????????????? | | ?????????????????????????????????????????????????? | | ?????????????????????????#######?????????????????? | | ?????????????????????????# #?????????????????? | | ?????????????????????????# #?????????????????? | | ?????????????????????????# #?????????????????? | | ?????????????????????????# ""#?????????????????? | | ?????????????????????????# T"#?????????????????? | | ?????????????????######### ""#?????????????????? | | ?????????????????# # #?????? |#???????? | | ?????????????????# """ g####+### #???????? | | ?????????????????# """ Y@%Y k #???????? | | ?????????????????# """ #### ########????????????? | | ?????????????????# """ #??# #?#######???????????? | | ?????????????????# *#??#%#?# #???????????? | | ?????????????????########??# #?# #???????????? | | ???????????????????????????#=### """ #???????????? | | ?????? ##############%! # """ #???????????? | | ?????? + =! + """ #???????????? | | ?????? ##############% # """ #???????????? | | ???????????????????????????# # """ #???????????? | | ?????????????????#########?# # #???????????? | | ??????????????# ?# # #???????????? | | ??????????????# # ##########+#??????? | | ??????????????# #% ?????? | | % #?????????????# + ?????? | | #?????????????# # ?????? | | #?????????????# ![# ########## ?????? | | =!#?????????????# | !?# #?????????????????? | | %%#?????????????# ?# #?????????????????? | | %=%#?????????????########??# #?????????????????? | | [ %#???????????????######### #?????????????????? | | %% "???????????????# ]!&&!# =#?????????????????? | | #???????????????# **!! %# #?????????????????? | | % #???????????????# =[=* /&%%#?????????????????? | | #???????????????# !% =#% #?????????????????? | +----------------------------------------------------+ Best States ------------- Heat Dissipation 31 Energy Generation 15 Energy Capacity 250 Matter Stores 300 Matter Capacity 300 Sight Range 21 Terrain Scan Density 10 Armor Coverage 375 Evasion (%) 50 Recoil Reduction 4 Offensive Hacking 10 Item Schematics ----------------- Med. Storage Unit | -10/Materials | Hacked Robot Schematics ------------------ None Fabricated ------------ Nothing Repaired ---------- Nothing Alien Tech Used ----------------- None Achievements -------------- None Challenges ------------ None Game ------ Seed HardenedScatterGuard Manual? 0 Play Time 00:20:25 Cumulative 414.7 hours Start 2025.06.15 @ 14:36:35 End 2025.06.15 @ 14:52:32 Sessions 1 Manual Loads 0 Difficulty Rogue Special Mode None Game No. 549 Rogue 549 Adventurer 0 Explorer 0 Win Type - Total 9 Types 6/1/1/1/0/0/0/0/0/0 Lore% 63 Gallery% 75 Achievement% 75 Wizard Run 0 Options --------- Layout 0 ASCII 0 Keyboard 1 Movement Numpad Keybinds 0 Fullscreen 2 Font 24/Smallcaps Map View 76x50 Zoom Use 0% Tactical HUD 1 Map Filters NONE Filters NONE Steam 1 RUN: 6282ad64-3fed-4403-838d-4cc112497454